fUST/lending_fUST_20260401
["ID","MTS","AMOUNT","RATE_DAILY","PERIOD"]
[419241054,1775032247046,-500.0,0.00021999,2]
[419241056,1775032247055,-513.63003885,0.00021999,2]
[419241058,1775032247064,-500.0,0.00021999,2]
[419241060,1775032247073,-500.0,0.00021999,2]
[419241062,1775032247082,-500.0,0.00021999,2]
[419241064,1775032247091,-542.46178388,0.00021999,2]
[419241066,1775032247100,-500.0,0.00021999,2]
[419241068,1775032247109,-500.0,0.00021999,2]
[419241070,1775032247118,-500.0,0.00021999,2]
[419241072,1775032247127,-500.0,0.00021999,2]
[419241074,1775032247137,-500.0,0.00021999,2]
[419241075,1775032247147,-500.0,0.00021999,2]
[419241087,1775032247244,-500.0,0.00021999,2]
[419241089,1775032247256,-250.0,0.00021999,2]
[419241091,1775032247266,-500.0,0.00021999,2]
[419241094,1775032247275,-500.0,0.00021999,2]
[419241096,1775032247284,-500.0,0.00022,8]
[419241098,1775032247293,-500.0,0.00022,8]
[419241100,1775032247302,-1339.00889629,0.00022,2]
[419241102,1775032247313,-2550.90516734,0.00022,2]
[419241191,1775033013694,500.0,0.0003287,120]
[419241193,1775033345313,153.49821129,0.00032876,120]
[419241221,1775033432350,-1067.17778719,0.00012397,2]
[419241222,1775033432361,-595.0,0.00012397,2]
[419241223,1775033432370,-1398.97814567,0.00012697,2]
[419241224,1775033432401,-2638.6063913,0.00012697,2]
[419241225,1775033432410,-606.0,0.00012995,2]
[419241226,1775033432420,-300.0,0.00012996,2]
[419241227,1775033432429,-300.0,0.00012996,2]
[419241228,1775033432439,-300.0,0.00012996,2]
[419241229,1775033432448,-2379.09602337,0.00012997,2]
[419241230,1775033432459,-1119.71724561,0.00012997,2]
[419241322,1775033441234,-2023.97464287,0.00012997,2]
[419241323,1775033441244,-154.0,0.00013463,2]
[419241324,1775033441254,-154.0,0.00013599,2]
[419241325,1775033441263,-192.44121632,0.00013599,2]
[419241326,1775033441272,-1000.0,0.00013699,2]
[419241327,1775033441282,-420.0,0.00014252,2]
[419241328,1775033441292,-587.0,0.0001563,2]
[419241329,1775033441301,-823.0,0.00017141,2]
[419241330,1775033441310,-1152.0,0.00018798,2]
[419241331,1775033441319,-443.58414081,0.0002011,2]
[419241332,1775033441330,-657.01944389,0.0002011,2]
[419241333,1775033441341,-303.3964153,0.0002011,2]
[419241334,1775033441350,-184.0,0.0002011,2]
[419241336,1775033441359,-440.0,0.0002011,2]
[419241338,1775033441368,-91.65560199,0.0002011,2]
[419241354,1775033441663,-118.08339801,0.0002011,2]
[419241355,1775033441674,-823.73451721,0.00020615,2]
[419241356,1775033441685,-789.26548279,0.00020615,2]
[419241357,1775033441695,-693.3919763,0.00020852,2]
[419241358,1775033441705,-154.0,0.000209,2]
[419241359,1775033441714,-152.0,0.000209,2]
[419241360,1775033441723,-719.04747942,0.00020907,2]
[419241361,1775033441732,-745.65223616,0.00020962,2]
[419241362,1775033441741,-773.2413689,0.00021017,2]
[419241363,1775033441750,-801.85129955,0.00021072,2]
[419241365,1775033441759,-831.51979763,0.00021127,2]
[419241367,1775033441769,-862.28603014,0.00021182,2]
[419241369,1775033441778,-894.19061326,0.00021237,2]
[419241371,1775033441787,-927.27566595,0.00021292,2]
[419241373,1775033441797,-961.58486559,0.00021347,2]
[419241375,1775033441807,-295.97805332,0.0002156,2]
[419241377,1775033441818,-500.0,0.00021673,2]
[419241379,1775033441828,-500.0,0.00021673,2]
[419241381,1775033441839,-500.0,0.00021673,2]
[419241383,1775033441849,-500.0,0.00021673,2]
[419241385,1775033441858,-156.82605751,0.00021685,2]
[419241388,1775033441869,-691.71998786,0.00021685,2]
[419241390,1775033441879,-771.07,0.00021688,10]
[419241391,1775033441888,-500.0,0.00021697,2]
[419241394,1775033441898,-205.18230648,0.00021697,2]
[419241396,1775033441907,-500.0,0.00021697,2]
[419241398,1775033441917,-500.0,0.00021697,2]
[419241400,1775033441926,-584.54102719,0.00021697,2]
[419241402,1775033441935,-500.0,0.00021697,2]
[419241404,1775033441945,-491.71597422,0.00021697,2]
[419241406,1775033441954,-500.0,0.00021697,2]
[419241408,1775033441963,-500.0,0.00021697,2]
[419241410,1775033441972,-500.0,0.00021697,2]
[419241412,1775033441982,-500.0,0.00021697,2]
[419241414,1775033441991,-500.0,0.00021697,2]
[419241416,1775033442001,-500.0,0.00021697,2]
[419241418,1775033442011,-500.0,0.00021697,2]
[419241432,1775033442126,-500.0,0.00021697,2]
[419241434,1775033442137,-500.0,0.00021697,2]
[419241436,1775033442152,-500.0,0.00021697,2]
[419241438,1775033442161,-500.0,0.00021697,2]
[419241440,1775033442170,-500.0,0.00021697,2]
[419241442,1775033442180,-188.46645761,0.00021697,2]
[419241444,1775033442190,-500.0,0.00021697,2]
[419241446,1775033442200,-176.97011847,0.00021697,2]
[419241449,1775033442209,-500.0,0.00021697,2]
[419241451,1775033442219,-500.0,0.00021697,2]
[419241453,1775033442228,-500.0,0.00021697,2]
[419241455,1775033442237,-500.0,0.00021697,2]
[419241456,1775033442247,-500.0,0.00021697,2]
[419241459,1775033442257,-389.62376096,0.00021697,2]
[419241461,1775033442267,-500.0,0.00021697,2]
[419241463,1775033442276,-500.0,0.00021697,2]
[419241465,1775033442285,-500.0,0.00021697,2]
[419241467,1775033442295,-500.0,0.00021697,2]
[419241469,1775033442304,-500.0,0.00021697,2]
[419241471,1775033442313,-500.0,0.00021697,2]
[419241473,1775033442323,-500.0,0.00021697,2]
[419241474,1775033442332,-500.0,0.00021697,2]
[419241476,1775033442341,-236.61495124,0.00021697,2]
[419241478,1775033442350,-500.0,0.00021697,2]
[419241481,1775033442360,-500.0,0.00021697,2]
[419241483,1775033442369,-500.0,0.00021697,2]
[419241485,1775033442378,-500.0,0.00021697,2]
[419241487,1775033442388,-500.0,0.00021697,2]
[419241489,1775033442397,-500.0,0.00021697,2]
[419241491,1775033442406,-500.0,0.00021697,2]
[419241493,1775033442416,-500.0,0.00021697,2]
[419241495,1775033442426,-500.0,0.00021697,2]
[419241496,1775033442435,-500.0,0.00021697,2]
[419241498,1775033442444,-500.0,0.00021697,2]
[419241501,1775033442454,-500.0,0.00021697,2]
[419241503,1775033442464,-500.0,0.00021697,2]
[419241505,1775033442473,-500.0,0.00021697,2]
[419241507,1775033442482,-400.0,0.00021697,2]
[419241509,1775033442492,-151.0,0.00021697,2]
[419241511,1775033442502,-151.0,0.00021697,2]
[419241513,1775033442511,-151.0,0.00021697,2]
[419241515,1775033442520,-12339.52553592,0.00021698,2]
[419241517,1775033442533,-8242.72649834,0.00021698,2]
[419241519,1775033442544,-113172.13107368,0.00021698,2]
[419241637,1775033443662,-468.942,0.00021698,2]
[419241638,1775033443822,-7000.0,0.00021698,2]
[419241639,1775033443837,-5352.49999837,0.00021698,2]
[419241640,1775033443879,-1179.67946753,0.00021698,2]
[419241642,1775033443891,-3256.23330091,0.00021698,2]
[419241837,1775033446565,-197.31870222,0.0002156,2]
[419241839,1775033446575,-79.19629808,0.00021698,2]
[419241841,1775033446587,-45966.56643804,0.00021698,2]
[419241867,1775033446822,-72058.87929682,0.00021698,2]
[419241869,1775033446841,-31495.57277566,0.00021698,2]
[419241885,1775033458404,2012.0726505,0.00032,120]
[419241890,1775033656562,1000.0,0.00032876,120]
[419241892,1775033861158,31945.13,0.00032876,120]
[419241897,1775034100491,-770.26202494,0.00013699,2]
[419241898,1775034100508,-229.73797506,0.00013699,2]
[419241899,1775034100518,-770.26202494,0.00013699,2]
[419241900,1775034119843,500.0,0.00032876,120]
[419241901,1775034120085,500.0,0.00032876,120]
[419241997,1775034633479,-1116.53946804,7e-05,2]
[419241998,1775034633537,-3883.46053196,7.6e-05,2]
[419242056,1775034638767,-24535.53225167,7.6e-05,2]
[419242058,1775034638776,-5836.42379625,0.00013599,2]
[419242060,1775034638786,-614.0,0.00013599,2]
[419242062,1775034638796,-1200.0,0.00013698,2]
[419242064,1775034638805,-1000.0,0.00013699,2]
[419242066,1775034638815,-901.0,0.00015068,2]
[419242068,1775034638824,-250.19743157,0.00018101,2]
[419242070,1775034638833,-184.0,0.0001978,2]
[419242072,1775034638843,-440.0,0.0001978,2]
[419242074,1775034638852,-827.66210814,0.00019781,2]
[419242076,1775034638864,-577.71563276,0.00019781,2]
[419242078,1775034638873,-106.51705479,0.00020036,2]
[419242080,1775034638885,-15273.85654521,0.00020036,2]
[419242082,1775034638894,-1495.13719768,0.00020109,2]
[419242084,1775034638903,-1404.0,0.0002011,2]
[419242086,1775034638913,-500.54196291,0.00020258,2]
[419242088,1775034638923,-206.936,0.00020571,2]
[419242090,1775034638933,-2821.09776833,0.00020822,2]
[419242092,1775034638942,-410.9959123,0.00020853,2]
[419242094,1775034638951,-151.04535365,0.00020952,2]
[419242096,1775034638960,-500.0,0.00021473,2]
[419242098,1775034638970,-643.42,0.00021487,10]
[419242099,1775034638980,-209.95819566,0.00021495,2]
[419242102,1775034638990,-500.0,0.00021495,2]
[419242104,1775034639000,-500.0,0.00021495,2]
[419242106,1775034639009,-470.73499458,0.00021495,2]
[419242108,1775034639019,-500.0,0.00021496,2]
[419242110,1775034639028,-439.17871903,0.00021496,2]
[419242111,1775034639037,-500.0,0.00021496,2]
[419242113,1775034639047,-244.20118195,0.00021496,2]
[419242115,1775034639056,-500.0,0.00021496,2]
[419242117,1775034639065,-500.0,0.00021496,2]
[419242119,1775034639075,-500.0,0.00021496,2]
[419242121,1775034639085,-500.0,0.00021496,2]
[419242123,1775034639094,-500.0,0.00021496,2]
[419242125,1775034639104,-500.0,0.00021496,2]
[419242128,1775034639115,-500.0,0.00021496,2]
[419242130,1775034639126,-500.0,0.00021496,2]
[419242131,1775034639137,-500.0,0.00021496,2]
[419242133,1775034639147,-31813.2941815,0.00021497,2]
[419242510,1775034646740,-1116.559235,0.00013499,2]
[419242511,1775034646750,-747.22692211,0.00021497,2]
[419242512,1775034646956,-12145.56779888,0.00021497,2]
[419242513,1775034646981,-15518.56567124,0.00021497,2]
[419242519,1775034785507,160.63,0.00032877,120]
[419242539,1775035116765,200.0,0.00032877,120]
[419242580,1775035525080,14106.26,0.00032876,120]
[419242581,1775035718380,1831.4,0.000309,120]
[419242582,1775035718779,1831.4,0.000319,120]
[419242590,1775035831961,-341.005,0.00013699,2]
[419242591,1775035831973,-658.995,0.00013699,2]
[419242592,1775035831983,-615.0,0.00013699,2]
[419242593,1775035831993,-1234.61145974,0.00013809,2]
[419242594,1775035832002,-2226.32025573,0.00014109,2]
[419242595,1775035832014,-646.09968537,0.00014109,2]
[419242596,1775035832023,-300.0,0.00014308,2]
[419242597,1775035832033,-3258.93103689,0.00014309,2]
[419242598,1775035832043,-794.96927774,0.00015052,2]
[419242603,1775035840397,-2830.52561888,0.00015052,2]
[419242604,1775035840407,-637.0,0.00015052,2]
[419242605,1775035840416,-420.0,0.0001567,2]
[419242606,1775035840426,-3632.15560419,0.00016488,4]
[419242607,1775035840769,-13.28652849,0.00016488,4]
[419242608,1775035840779,-587.0,0.00017162,2]
[419242609,1775035840788,-801.20786937,0.00018298,2]
[419242850,1775035842996,-14286.87184566,0.00018298,2]
[419242853,1775035843008,-7133.59934537,0.00018298,2]
[419243125,1775035845921,-13208.54675185,0.00018298,2]
[419243149,1775035846133,-1874.65562877,0.00018298,2]
[419243254,1775035872908,572.04,0.00032877,120]
[419243262,1775035900014,-1000.0,0.00013699,2]
[419243278,1775036078353,2000.0,0.00032876,120]
[419243281,1775036291234,2000.0,0.00032876,120]
[419243300,1775036549320,2000.0,0.00032876,120]
[419243301,1775036600650,2123.881604,0.00032876,120]
[419243327,1775036689768,1500.0,0.00032877,120]
[419243328,1775036714345,1000.0,0.00032877,120]
[419243329,1775036732502,500.0,0.0003287,120]
[419243330,1775036756685,500.0,0.00032877,120]
[419243331,1775036772872,2000.0,0.00032876,120]
[419243334,1775036859257,489.23,0.00032877,120]
[419243448,1775037034006,2000.0,0.00032876,120]
[419243496,1775037038092,-1000.0,0.00013699,2]
[419243498,1775037038102,-558.72429463,0.00015084,2]
[419243500,1775037038111,-1288.66143946,0.00015878,2]
[419243502,1775037038120,-300.0,0.00016111,2]
[419243504,1775037038130,-300.0,0.00016111,2]
[419243506,1775037038139,-300.0,0.00016111,2]
[419243508,1775037038149,-300.0,0.00016111,2]
[419243510,1775037038158,-376.75413493,0.00016112,2]
[419243511,1775037038167,-678.15744288,0.00016112,2]
[419243513,1775037038177,-1205.61323178,0.00016112,2]
[419243514,1775037038186,-1883.77067466,0.00016112,2]
[419243515,1775037038195,-804.14784951,0.00016112,2]
[419243516,1775037038205,-2712.62977151,0.00016112,2]
[419243517,1775037038215,-2254.49374172,0.00016112,2]
[419243518,1775037038239,-1437.69678062,0.00016112,2]
[419243519,1775037038248,-637.31319972,0.00016112,2]
[419243532,1775037040664,-1181.79540719,0.00016112,2]
[419243625,1775037043347,-585.75366434,0.00016112,2]
[419243627,1775037046240,-2417.59065588,0.00016112,2]
[419243628,1775037046250,-6103.4169859,0.00016112,2]
[419243629,1775037046259,-3213.37480664,0.00016112,2]
[419243630,1775037046268,-236.90130557,0.00016112,2]
[419243631,1775037046278,-1116.559235,0.0001686,2]
[419243632,1775037046288,-237.94989574,0.0001696,2]
[419243637,1775037047320,-188.47245429,0.0001696,2]
[419243638,1775037047329,-483.75743358,0.0001696,2]
[419243639,1775037047340,-758.08417784,0.0001696,2]
[419243640,1775037047350,-1183.32202134,0.0001696,2]
[419243641,1775037047360,-164.78944183,0.0001696,2]
[419243642,1775037047369,-296.62099529,0.0001696,2]
[419243643,1775037047379,-336.50349569,0.0001696,2]
[419243644,1775037047389,-527.32621385,0.0001696,2]
[419243645,1775037047399,-823.12326192,0.0001696,2]
[419243646,1775037047409,-403.65622663,0.0001696,2]
[419243647,1775037047419,-294.38374252,0.0001696,2]
[419243648,1775037047429,-461.32140186,0.0001696,2]
[419243649,1775037047438,-720.09387572,0.0001696,2]
[419243650,1775037047448,-420.0,0.00017612,2]
[419243651,1775037047457,-171.517993,0.00017685,2]
[419243652,1775037047467,-1116.559235,0.00018359,2]
[419243653,1775037047476,-587.0,0.00019254,2]
[419243654,1775037047486,-34603.7144629,0.00019521,2]
[419243655,1775037047495,-365.8398746,0.00019521,2]
[419243656,1775037047505,-10376.5951595,0.00019521,2]
[419243657,1775037047515,-9769.3318701,0.00019521,2]
[419243658,1775037047525,-1392.0,0.00019689,2]
[419243659,1775037047534,-324.8269307,0.00019794,2]
[419243660,1775037047544,-1116.559235,0.00019858,2]
[419243661,1775037047554,-423.1891944,0.00020258,2]
[419243662,1775037047564,-394.0,0.000205,2]
[419243663,1775037047573,-5270.0667535,0.00020521,2]
[419243664,1775037047582,-446.82,0.00020603,10]
[419243665,1775037047592,-5348.09666053,0.00020613,2]
[419243666,1775037047602,-5000.0,0.00020613,2]
[419243667,1775037047611,-5000.0,0.00020613,2]
[419243668,1775037047621,-5000.0,0.00020613,2]
[419243669,1775037047631,-5000.0,0.00020613,2]
[419243670,1775037047641,-162.25642017,0.000209,2]
[419243671,1775037047651,-823.0,0.00021049,2]
[419243672,1775037047662,-1116.559235,0.00021357,2]
[419243673,1775037047673,-197.31870222,0.0002156,2]
[419243674,1775037047683,-333.15664371,0.00021697,2]
[419243675,1775037047693,-250.0,0.00021699,3]
[419243676,1775037047702,-250.0,0.00021699,3]
[419243677,1775037047712,-239.54965008,0.00021882,2]
[419243678,1775037047722,-4931.75589158,0.000219,2]
[419243679,1775037047731,-500.0,0.00021917,2]
[419243680,1775037047741,-500.0,0.00021917,2]
[419243681,1775037047751,-500.0,0.00021917,2]
[419243682,1775037047761,-500.0,0.00021917,2]
[419243683,1775037047771,-607.42510333,0.00021917,2]
[419243684,1775037047781,-220.94082737,0.00021917,2]
[419243685,1775037047790,-500.0,0.00021917,2]
[419243686,1775037047800,-500.0,0.00021917,2]
[419243687,1775037047809,-500.0,0.00021917,2]
[419243688,1775037047819,-288.926078,0.00021918,2]
[419243689,1775037047829,-288.926078,0.00021918,2]
[419243690,1775037047838,-288.926078,0.00021918,2]
[419243691,1775037047848,-288.926078,0.00021918,2]
[419243692,1775037047858,-280.8325,0.00021918,2]
[419243693,1775037047868,-280.8325,0.00021918,2]
[419243694,1775037047878,-280.8325,0.00021918,2]
[419243695,1775037047887,-280.8325,0.00021918,2]
[419243696,1775037047897,-151.0,0.00021918,2]
[419243697,1775037047907,-151.0,0.00021918,2]
[419243698,1775037047916,-151.0,0.00021918,2]
[419243699,1775037047926,-151.0,0.00021918,2]
[419243700,1775037047935,-151.0,0.00021918,2]
[419243701,1775037047944,-301.444215,0.00021918,2]
[419243702,1775037047954,-152.761577,0.00021918,2]
[419243703,1775037047963,-152.761577,0.00021918,2]
[419243704,1775037047972,-152.761577,0.00021918,2]
[419243705,1775037047980,-152.761577,0.00021918,2]
[419243706,1775037047988,-151.0,0.00021918,2]
[419243707,1775037047997,-151.0,0.00021918,2]
[419243708,1775037048005,-151.0,0.00021918,2]
[419243709,1775037048013,-188.404536,0.00021918,2]
[419243710,1775037048021,-188.404536,0.00021918,2]
[419243711,1775037048030,-188.404536,0.00021918,2]
[419243712,1775037048038,-188.404536,0.00021918,2]
[419243713,1775037048046,-298.851574,0.00021918,2]
[419243714,1775037048056,-151.0,0.00021918,2]
[419243715,1775037048065,-151.0,0.00021918,2]
[419243716,1775037048075,-151.0,0.00021918,2]
[419243717,1775037048084,-151.0,0.00021918,2]
[419243718,1775037048093,-151.0,0.00021918,2]
[419243719,1775037048102,-151.0,0.00021918,2]
[419243720,1775037048111,-288.956865,0.00021918,2]
[419243721,1775037048121,-151.0,0.00021918,2]
[419243722,1775037048130,-151.0,0.00021918,2]
[419243723,1775037048139,-251.322175,0.00021918,2]
[419243724,1775037048149,-251.322175,0.00021918,2]
[419243725,1775037048158,-251.322175,0.00021918,2]
[419243726,1775037048168,-251.322175,0.00021918,2]
[419243727,1775037048176,-251.322175,0.00021918,2]
[419243728,1775037048186,-251.322175,0.00021918,2]
[419243729,1775037048195,-251.322175,0.00021918,2]
[419243730,1775037048205,-251.322175,0.00021918,2]
[419243731,1775037048214,-498.819248,0.00021918,2]
[419243732,1775037048328,-498.819248,0.00021918,2]
[419243733,1775037048338,-498.819248,0.00021918,2]
[419243734,1775037048348,-498.819248,0.00021918,2]
[419243735,1775037048357,-498.819248,0.00021918,2]
[419243736,1775037048367,-498.819248,0.00021918,2]
[419243737,1775037048376,-498.819248,0.00021918,2]
[419243738,1775037048386,-498.819248,0.00021918,2]
[419243739,1775037048395,-484.596398,0.00021918,2]
[419243740,1775037048404,-484.596398,0.00021918,2]
[419243741,1775037048413,-484.596398,0.00021918,2]
[419243742,1775037048423,-484.596398,0.00021918,2]
[419243743,1775037048432,-484.596398,0.00021918,2]
[419243744,1775037048442,-484.596398,0.00021918,2]
[419243745,1775037048451,-484.596398,0.00021918,2]
[419243746,1775037048461,-484.596398,0.00021918,2]
[419243747,1775037048470,-151.0,0.00021918,2]
[419243748,1775037048479,-151.0,0.00021918,2]
[419243749,1775037048488,-151.0,0.00021918,2]
[419243750,1775037048498,-151.0,0.00021918,2]
[419243751,1775037048508,-224.300539,0.00021918,2]
[419243752,1775037048518,-224.300539,0.00021918,2]
[419243753,1775037048528,-224.300539,0.00021918,2]
[419243754,1775037048538,-224.300539,0.00021918,2]
[419243755,1775037048547,-224.300539,0.00021918,2]
[419243756,1775037048556,-224.300539,0.00021918,2]
[419243757,1775037048565,-224.300539,0.00021918,2]
[419243758,1775037048575,-1200.460473,0.00021918,2]
[419243759,1775037048584,-224.300539,0.00021918,2]
[419243760,1775037048593,-1200.460473,0.00021918,2]
[419243761,1775037048604,-1200.460473,0.00021918,2]
[419243762,1775037048613,-1200.460473,0.00021918,2]
[419243763,1775037048623,-1200.460473,0.00021918,2]
[419243764,1775037048633,-1200.460473,0.00021918,2]
[419243765,1775037048642,-2377.435696,0.00021918,2]
[419243766,1775037048652,-2377.435696,0.00021918,2]
[419243767,1775037048664,-1200.460473,0.00021918,2]
[419243768,1775037048673,-1200.460473,0.00021918,2]
[419243769,1775037048683,-2377.435696,0.00021918,2]
[419243770,1775037048693,-2377.435696,0.00021918,2]
[419243771,1775037048703,-2377.435696,0.00021918,2]
[419243772,1775037048714,-2377.435696,0.00021918,2]
[419243773,1775037048723,-2377.435696,0.00021918,2]
[419243774,1775037048733,-2377.435696,0.00021918,2]
[419243775,1775037048743,-254.700093,0.00021918,2]
[419243776,1775037048752,-254.700093,0.00021918,2]
[419243777,1775037048764,-254.700093,0.00021918,2]
[419243778,1775037048775,-254.700093,0.00021918,2]
[419243779,1775037048785,-254.700093,0.00021918,2]
[419243780,1775037048795,-254.700093,0.00021918,2]
[419243781,1775037048805,-254.700093,0.00021918,2]
[419243782,1775037048815,-254.700093,0.00021918,2]
[419243783,1775037048826,-398.660046,0.00021918,2]
[419243784,1775037048836,-398.660046,0.00021918,2]
[419243785,1775037048846,-398.660046,0.00021918,2]
[419243786,1775037048856,-398.660046,0.00021918,2]
[419243787,1775037048866,-398.660046,0.00021918,2]
[419243788,1775037048876,-398.660046,0.00021918,2]
[419243789,1775037048886,-398.660046,0.00021918,2]
[419243790,1775037048896,-398.660046,0.00021918,2]
[419243791,1775037048906,-151.0,0.00021918,2]
[419243792,1775037048915,-236.269629,0.00021918,2]
[419243793,1775037048926,-151.0,0.00021918,2]
[419243794,1775037048935,-151.0,0.00021918,2]
[419243795,1775037048945,-151.0,0.00021918,2]
[419243796,1775037048955,-151.0,0.00021918,2]
[419243797,1775037048965,-151.0,0.00021918,2]
[419243798,1775037048975,-151.0,0.00021918,2]
[419243799,1775037048986,-151.0,0.00021918,2]
[419243800,1775037048997,-240.62523,0.00021918,2]
[419243801,1775037049007,-1579.95173,0.00021918,2]
[419243802,1775037049017,-1579.95173,0.00021918,2]
[419243803,1775037049026,-1579.95173,0.00021918,2]
[419243804,1775037049036,-1579.95173,0.00021918,2]
[419243805,1775037049046,-1579.95173,0.00021918,2]
[419243806,1775037049056,-1579.95173,0.00021918,2]
[419243807,1775037049065,-1579.95173,0.00021918,2]
[419243808,1775037049076,-1579.95173,0.00021918,2]
[419243809,1775037049088,-151.0,0.00021918,2]
[419243810,1775037049097,-151.0,0.00021918,2]
[419243811,1775037049108,-151.0,0.00021918,2]
[419243812,1775037049118,-151.0,0.00021918,2]
[419243813,1775037049128,-151.0,0.00021918,2]
[419243814,1775037049138,-168.653921,0.00021918,2]
[419243815,1775037049148,-151.0,0.00021918,2]
[419243816,1775037049157,-151.0,0.00021918,2]
[419243817,1775037049167,-151.0,0.00021918,2]
[419243818,1775037049181,-181.349724,0.00021918,2]
[419243819,1775037049190,-273.076928,0.00021918,2]
[419243820,1775037049200,-273.076928,0.00021918,2]
[419243821,1775037049210,-273.076928,0.00021918,2]
[419243822,1775037049219,-273.076928,0.00021918,2]
[419243823,1775037049229,-288.926078,0.00021918,2]
[419243824,1775037049239,-288.926078,0.00021918,2]
[419243825,1775037049248,-288.926078,0.00021918,2]
[419243826,1775037049258,-288.926078,0.00021918,2]
[419243827,1775037049267,-280.8325,0.00021918,2]
[419243828,1775037049277,-280.8325,0.00021918,2]
[419243829,1775037049286,-280.8325,0.00021918,2]
[419243830,1775037049295,-280.8325,0.00021918,2]
[419243831,1775037049305,-151.0,0.00021918,2]
[419243832,1775037049314,-151.0,0.00021918,2]
[419243833,1775037049323,-151.0,0.00021918,2]
[419243834,1775037049332,-151.0,0.00021918,2]
[419243835,1775037049342,-151.0,0.00021918,2]
[419243836,1775037049351,-152.761577,0.00021918,2]
[419243837,1775037049360,-152.761577,0.00021918,2]
[419243838,1775037049371,-152.761577,0.00021918,2]
[419243839,1775037049381,-152.761577,0.00021918,2]
[419243840,1775037049390,-152.761577,0.00021918,2]
[419243841,1775037049401,-152.761577,0.00021918,2]
[419243842,1775037049410,-152.761577,0.00021918,2]
[419243843,1775037049420,-152.761577,0.00021918,2]
[419243844,1775037049429,-151.0,0.00021918,2]
[419243845,1775037049439,-151.0,0.00021918,2]
[419243846,1775037049449,-151.0,0.00021918,2]
[419243847,1775037049458,-151.0,0.00021918,2]
[419243848,1775037049467,-151.0,0.00021918,2]
[419243849,1775037049478,-151.0,0.00021918,2]
[419243850,1775037049488,-188.404536,0.00021918,2]
[419243851,1775037049497,-188.404536,0.00021918,2]
[419243852,1775037049507,-188.404536,0.00021918,2]
[419243853,1775037049517,-188.404536,0.00021918,2]
[419243854,1775037049526,-188.404536,0.00021918,2]
[419243855,1775037049535,-188.404536,0.00021918,2]
[419243856,1775037049545,-188.404536,0.00021918,2]
[419243857,1775037049555,-188.404536,0.00021918,2]
[419243858,1775037049564,-151.0,0.00021918,2]
[419243859,1775037049574,-151.0,0.00021918,2]
[419243860,1775037049584,-151.0,0.00021918,2]
[419243861,1775037049594,-207.374668,0.00021918,2]
[419243862,1775037049604,-251.322175,0.00021918,2]
[419243863,1775037049614,-251.322175,0.00021918,2]
[419243864,1775037049624,-251.322175,0.00021918,2]
[419243865,1775037049634,-251.322175,0.00021918,2]
[419243866,1775037049644,-498.819248,0.00021918,2]
[419243867,1775037049653,-498.819248,0.00021918,2]
[419243868,1775037049663,-498.819248,0.00021918,2]
[419243869,1775037049673,-498.819248,0.00021918,2]
[419243870,1775037049683,-498.819248,0.00021918,2]
[419243871,1775037049693,-498.819248,0.00021918,2]
[419243872,1775037049703,-498.819248,0.00021918,2]
[419243873,1775037049713,-498.819248,0.00021918,2]
[419243874,1775037049723,-484.596398,0.00021918,2]
[419243875,1775037049733,-484.596398,0.00021918,2]
[419243876,1775037049742,-484.596398,0.00021918,2]
[419243877,1775037049752,-484.596398,0.00021918,2]
[419243878,1775037049762,-484.596398,0.00021918,2]
[419243879,1775037049771,-484.596398,0.00021918,2]
[419243880,1775037049781,-484.596398,0.00021918,2]
[419243881,1775037049792,-484.596398,0.00021918,2]
[419243882,1775037049802,-151.0,0.00021918,2]